Workbook

Sheet WHMcNumber (hidden)
A1: DO NOT ALTER OR DELETE THIS SHEET. | D1: Chart Names | G1: Excel Version | H1: 16 | J1: PC
D2: ="dist p values" -> dist p values | E2: spcwhm1 | F2: spc1 | G2: ="dist p values" -> dist p values | H2: Chart
D3: ="hist of averages" -> hist of averages | E3: spcwhm2 | F3: spc2 | G3: ="hist of averages" -> hist of averages | H3: Chart
A4: 2

Sheet spcwhm1 (hidden)
A1: 0.003976243668 | B1: 0 | P1: Histogram | S1: 0 | T1: =ROUND(1+($A1-$S$1)/($S$2-$S$1)*10000,0) -> 41
A2: 0.003976243668 | B2: 14 | S2: 1 | T2: 41
A3: 0.1017298116 | B3: 14 | T3: 1018
A4: 0.1017298116 | B4: 0 | T4: 1018
A5: 0.1017298116 | B5: 11 | P5: ="dist p values" -> dist p values | T5: 1018
A6: 0.1994833795 | B6: 11 | P6: whmc1 | T6: 1996
A7: 0.1994833795 | B7: 0 | P7: 18 | T7: 1996
A8: 0.1994833795 | B8: 11 | T8: 1996
A9: 0.2972369474 | B9: 11 | T9: 2973
A10: 0.2972369474 | B10: 0 | T10: 2973
A11: 0.2972369474 | B11: 10 | P11: TRUE | T11: 2973
A12: 0.3949905154 | B12: 10 | P12: FALSE | Q12: FALSE | T12: 3951
A13: 0.3949905154 | B13: 0 | P13: TRUE | T13: 3951
A14: 0.3949905154 | B14: 9 | P14: TRUE | T14: 3951
A15: 0.4927440833 | B15: 9 | P15: TRUE | T15: 4928
A16: 0.4927440833 | B16: 0 | P16: TRUE | T16: 4928
A17: 0.4927440833 | B17: 5 | P17: TRUE | T17: 4928
A18: 0.5904976512 | B18: 5 | P18: TRUE | T18: 5906
A19: 0.5904976512 | B19: 0 | P19: TRUE | T19: 5906
A20: 0.5904976512 | B20: 11 | P20: TRUE | T20: 5906
A21: 0.6882512191 | B21: 11 | P21: TRUE | T21: 6884
A22: 0.6882512191 | B22: 0 | P22: TRUE | T22: 6884
A23: 0.6882512191 | B23: 10 | P23: TRUE | T23: 6884
A24: 0.786004787 | B24: 10 | P24: TRUE | T24: 7861
A25: 0.786004787 | B25: 0 | T25: 7861
A26: 0.786004787 | B26: 6 | T26: 7861
A27: 0.883758355 | B27: 6 | T27: 8839
A28: 0.883758355 | B28: 0 | T28: 8839
A29: 0.883758355 | B29: 13 | T29: 8839
A30: 0.9815119229 | B30: 13 | T30: 9816
A31: 0.9815119229 | B31: 0 | T31: 9816
P33: TRUE
P34: FALSE
P51: FALSE
P53: FALSE
P55: FALSE
P57: TRUE
P58: FALSE
P59: FALSE
P60: -1
P61: FALSE
P70: TRUE
P71: FALSE
P72: FALSE
P73: FALSE
P101: 0
P106: TRUE
P107: FALSE
P108: FALSE
P109: FALSE
P110: FALSE
P111: FALSE
P112: FALSE
P113: FALSE
P115: FALSE

Sheet spcwhm2 (hidden)
A1: 93.875 | B1: 0 | P1: Histogram | S1: 92 | T1: =ROUND(1+($A1-$S$1)/($S$2-$S$1)*10000,0) -> 1340
A2: 93.875 | B2: 2 | S2: 106 | T2: 1340
A3: 94.93325 | B3: 2 | T3: 2096
A4: 94.93325 | B4: 0 | T4: 2096
A5: 94.93325 | B5: 1 | P5: ="hist of averages" -> hist of averages | T5: 2096
A6: 95.9915 | B6: 1 | P6: whmc2 | T6: 2852
A7: 95.9915 | B7: 0 | P7: 4 | T7: 2852
A8: 95.9915 | B8: 9 | T8: 2852
A9: 97.04975 | B9: 9 | T9: 3608
A10: 97.04975 | B10: 0 | T10: 3608
A11: 97.04975 | B11: 13 | P11: TRUE | T11: 3608
A12: 98.108 | B12: 13 | P12: FALSE | Q12: FALSE | T12: 4364
A13: 98.108 | B13: 0 | P13: TRUE | T13: 4364
A14: 98.108 | B14: 9 | P14: TRUE | T14: 4364
A15: 99.16625 | B15: 9 | P15: TRUE | T15: 5120
A16: 99.16625 | B16: 0 | P16: TRUE | T16: 5120
A17: 99.16625 | B17: 15 | P17: TRUE | T17: 5120
A18: 100.2245 | B18: 15 | P18: TRUE | T18: 5876
A19: 100.2245 | B19: 0 | P19: TRUE | T19: 5876
A20: 100.2245 | B20: 21 | P20: TRUE | T20: 5876
A21: 101.28275 | B21: 21 | P21: TRUE | T21: 6632
A22: 101.28275 | B22: 0 | P22: TRUE | T22: 6632
A23: 101.28275 | B23: 16 | P23: TRUE | T23: 6632
A24: 102.341 | B24: 16 | P24: TRUE | T24: 7387
A25: 102.341 | B25: 0 | T25: 7387
A26: 102.341 | B26: 6 | T26: 7387
A27: 103.39925 | B27: 6 | T27: 8143
A28: 103.39925 | B28: 0 | T28: 8143
A29: 103.39925 | B29: 8 | T29: 8143
A30: 104.4575 | B30: 8 | T30: 8899
A31: 104.4575 | B31: 0 | T31: 8899
P33: TRUE
P34: FALSE
P51: FALSE
P53: FALSE
P55: FALSE
P57: TRUE
P58: FALSE
P59: FALSE
P60: -1
P61: FALSE
P70: TRUE
P71: FALSE
P72: FALSE
P73: FALSE
P101: 0
P106: TRUE
P107: FALSE
P108: FALSE
P109: FALSE
P110: FALSE
P111: FALSE
P112: FALSE
P113: FALSE
P115: FALSE

Sheet Sheet6 (hidden)
A1: 93.875 | B1: 0.005 | C1: -2.575829304 | D1: -2.667656042
A2: 94.3555 | B2: 0.015 | C2: -2.170090378 | D2: -2.4577669
A3: 95.8665 | B3: 0.025 | C3: -1.959963985 | D3: -1.797740901
A4: 96.204 | B4: 0.035 | C4: -1.811910673 | D4: -1.650316166
A5: 96.252 | B5: 0.045 | C5: -1.69539771 | D5: -1.629349093
A6: 96.327 | B6: 0.055 | C6: -1.59819314 | D6: -1.59658804
A7: 96.434 | B7: 0.065 | C7: -1.514101888 | D7: -1.549848939
A8: 96.683 | B8: 0.075 | C8: -1.439531471 | D8: -1.441082246
A9: 96.6965 | B9: 0.085 | C9: -1.372203809 | D9: -1.435185256
A10: 96.7995 | B10: 0.095 | C10: -1.310579112 | D10: -1.390193411
A11: 96.8095 | B11: 0.105 | C11: -1.253565438 | D11: -1.385825271
A12: 97.0075 | B12: 0.115 | C12: -1.200358858 | D12: -1.299336093
A13: 97.1225 | B13: 0.125 | C13: -1.15034938 | D13: -1.24910248
A14: 97.2045 | B14: 0.135 | C14: -1.103062556 | D14: -1.213283729
A15: 97.3265 | B15: 0.145 | C15: -1.058121618 | D15: -1.159992418
A16: 97.517 | B16: 0.155 | C16: -1.015222033 | D16: -1.076779345
A17: 97.591 | B17: 0.165 | C17: -0.9741138771 | D17: -1.044455107
A18: 97.5935 | B18: 0.175 | C18: -0.9345892911 | D18: -1.043363072
A19: 97.728 | B19: 0.185 | C19: -0.896473364 | D19: -0.9846115845
A20: 97.8985 | B20: 0.195 | C20: -0.8596173642 | D20: -0.9101347924
A21: 97.9105 | B21: 0.205 | C21: -0.8238936303 | D21: -0.904893024
A22: 97.9765 | B22: 0.215 | C22: -0.7891916527 | D22: -0.8760632981
A23: 98.016 | B23: 0.225 | C23: -0.7554150264 | D23: -0.8588091439
A24: 98.0675 | B24: 0.235 | C24: -0.7224790519 | D24: -0.8363132213
A25: 98.095 | B25: 0.245 | C25: -0.6903088239 | D25: -0.8243008355
A26: 98.17 | B26: 0.255 | C26: -0.6588376927 | D26: -0.7915397833
A27: 98.2105 | B27: 0.265 | C27: -0.6280060144 | D27: -0.7738488151
A28: 98.228 | B28: 0.275 | C28: -0.597760126 | D28: -0.7662045695
A29: 98.5925 | B29: 0.285 | C29: -0.5680514983 | D29: -0.6069858556
A30: 98.719 | B30: 0.295 | C30: -0.5388360303 | D30: -0.5517288808
A31: 98.7265 | B31: 0.305 | C31: -0.510073457 | D31: -0.5484527756
A32: 98.965 | B32: 0.315 | C32: -0.4817268496 | D32: -0.4442726295
A33: 99.017 | B33: 0.325 | C33: -0.4537621902 | D33: -0.4215582999
A34: 99.156 | B34: 0.335 | C34: -0.4261480078 | D34: -0.3608411498
A35: 99.332 | B35: 0.345 | C35: -0.3988550656 | D35: -0.2839618805
A36: 99.4255 | B36: 0.355 | C36: -0.3718560894 | D36: -0.2431197687
A37: 99.4645 | B37: 0.365 | C37: -0.3451255315 | D37: -0.2260840215
A38: 99.4695 | B38: 0.375 | C38: -0.318639364 | D38: -0.2238999514
A39: 99.4985 | B39: 0.385 | C39: -0.2923748962 | D39: -0.2112323445
A40: 99.5035 | B40: 0.395 | C40: -0.2663106132 | D40: -0.2090482744
A41: 99.531 | B41: 0.405 | C41: -0.2404260311 | D41: -0.1970358885
A42: 99.645 | B42: 0.415 | C42: -0.214701568 | D42: -0.1472390891
A43: 99.7375 | B43: 0.425 | C43: -0.1891184263 | D43: -0.1068337914
A44: 99.872 | B44: 0.435 | C44: -0.1636584862 | D44: -0.04808230434
A45: 99.9045 | B45: 0.445 | C45: -0.138304208 | D45: -0.03388584837
A46: 100.0255 | B46: 0.455 | C46: -0.1130385406 | D46: 0.01896864925
A47: 100.026 | B47: 0.465 | C47: -0.0878448379 | D47: 0.01918705626
A48: 100.162 | B48: 0.475 | C48: -0.06270677794 | D48: 0.07859376433
A49: 100.183 | B49: 0.485 | C49: -0.03760828766 | D49: 0.08776685896
A50: 100.2415 | B50: 0.495 | C50: -0.01253346951 | D50: 0.1133204797
A51: 100.2485 | B51: 0.505 | C51: 0.01253346951 | D51: 0.1163781779
A52: 100.3335 | B52: 0.515 | C52: 0.03760828766 | D52: 0.1535073705
A53: 100.3395 | B53: 0.525 | C53: 0.06270677794 | D53: 0.1561282546
A54: 100.3905 | B54: 0.535 | C54: 0.0878448379 | D54: 0.1784057702
A55: 100.409 | B55: 0.545 | C55: 0.1130385406 | D55: 0.1864868297
A56: 100.474 | B56: 0.555 | C56: 0.138304208 | D56: 0.2148797417
A57: 100.4775 | B57: 0.565 | C57: 0.1636584862 | D57: 0.2164085908
A58: 100.503 | B58: 0.575 | C58: 0.1891184263 | D58: 0.2275473485
A59: 100.624 | B59: 0.585 | C59: 0.214701568 | D59: 0.2804018462
A60: 100.749 | B60: 0.595 | C60: 0.2404260311 | D60: 0.3350035999
A61: 100.7565 | B61: 0.605 | C61: 0.2663106132 | D61: 0.3382797051
A62: 100.921 | B62: 0.615 | C62: 0.2923748962 | D62: 0.410135613
A63: 100.9295 | B63: 0.625 | C63: 0.318639364 | D63: 0.4138485323
A64: 100.9345 | B64: 0.635 | C64: 0.3451255315 | D64: 0.4160326024
A65: 100.942 | B65: 0.645 | C65: 0.3718560894 | D65: 0.4193087077
A66: 101.0365 | B66: 0.655 | C66: 0.3988550656 | D66: 0.4605876335
A67: 101.0585 | B67: 0.665 | C67: 0.4261480078 | D67: 0.4701975422
A68: 101.092 | B68: 0.675 | C68: 0.4537621902 | D68: 0.4848308122
A69: 101.1885 | B69: 0.685 | C69: 0.4817268496 | D69: 0.526983366
A70: 101.251 | B70: 0.695 | C70: 0.510073457 | D70: 0.5542842429
A71: 101.291 | B71: 0.705 | C71: 0.5388360303 | D71: 0.5717568041
A72: 101.347 | B72: 0.715 | C72: 0.5680514983 | D72: 0.5962183898
A73: 101.347 | B73: 0.725 | C73: 0.597760126 | D73: 0.5962183898
A74: 101.352 | B74: 0.735 | C74: 0.6280060144 | D74: 0.5984024599
A75: 101.426 | B75: 0.745 | C75: 0.6588376927 | D75: 0.6307266982
A76: 101.4735 | B76: 0.755 | C76: 0.6903088239 | D76: 0.6514753646
A77: 101.702 | B77: 0.765 | C77: 0.7224790519 | D77: 0.7512873704
A78: 101.767 | B78: 0.775 | C78: 0.7554150264 | D78: 0.7796802824
A79: 101.797 | B79: 0.785 | C79: 0.7891916527 | D79: 0.7927847033
A80: 101.8585 | B80: 0.795 | C80: 0.8238936303 | D80: 0.8196487661
A81: 101.927 | B81: 0.805 | C81: 0.8596173642 | D81: 0.8495705271
A82: 102.01 | B82: 0.815 | C82: 0.896473364 | D82: 0.8858260916
A83: 102.104 | B83: 0.825 | C83: 0.9345892911 | D83: 0.9268866104
A84: 102.1645 | B84: 0.835 | C84: 0.9741138771 | D84: 0.9533138593
A85: 102.248 | B85: 0.845 | C85: 1.015222033 | D85: 0.9897878307
A86: 102.2975 | B86: 0.855 | C86: 1.058121618 | D86: 1.011410125
A87: 102.5355 | B87: 0.865 | C87: 1.103062556 | D87: 1.115371864
A88: 102.6255 | B88: 0.875 | C88: 1.15034938 | D88: 1.154685127
A89: 102.664 | B89: 0.885 | C89: 1.200358858 | D89: 1.171502467
A90: 102.8595 | B90: 0.895 | C90: 1.253565438 | D90: 1.25689961
A91: 102.917 | B91: 0.905 | C91: 1.310579112 | D91: 1.282016417
A92: 103.1725 | B92: 0.915 | C92: 1.372203809 | D92: 1.393622401
A93: 103.4425 | B93: 0.925 | C93: 1.439531471 | D93: 1.511562189
A94: 103.45 | B94: 0.935 | C94: 1.514101888 | D94: 1.514838295
A95: 103.8145 | B95: 0.945 | C95: 1.59819314 | D95: 1.674057009
A96: 103.884 | B96: 0.955 | C96: 1.69539771 | D96: 1.704415584
A97: 104.0335 | B97: 0.965 | C97: 1.811910673 | D97: 1.769719281
A98: 104.159 | B98: 0.975 | C98: 1.959963985 | D98: 1.824539442
A99: 104.259 | B99: 0.985 | C99: 2.170090378 | D99: 1.868220845
A100: 104.4575 | B100: 0.995 | C100: 2.575829304 | D100: 1.95492843

Sheet Data
A1: Randon Number | B1: Population | D1: Population Average | F1: Sample Average | G1: Sample Sigma | H1: Lower Confidence Limit | I1: Upper Confidence Limit | J1: Contain Population Aveage? | K1: Number Not Containing | L1: z | M1: p-Value
A2: =RAND() -> 0.5821417622 | B2: 93.14 | D2: =AVERAGE(B:B) -> 100.076756 | F2: 101.951 | G2: 10.32173226 | H2: =F2-1.96*G2/SQRT(20) -> 97.42730138 | I2: =F2+1.96*G2/SQRT(20) -> 106.4746986 | J2: =IF(OR(I2<100.07, H2>$D$2), "No", "Yes") -> Yes | K2: =COUNTIF(J2:J101, "No") -> 6 | L2: =(F2-100.077)/(G2/SQRT(20)) -> 0.8119550642 | M2: =2*(1-_xlfn.NORM.S.DIST(ABS(L2), TRUE)) -> 0.4168174164
A3: =RAND() -> 0.7715041402 | B3: 87.65 | F3: 103.025 | G3: 9.183969157 | H3: =F3-1.96*G3/SQRT(20) -> 98.99994805 | I3: =F3+1.96*G3/SQRT(20) -> 107.050052 | J3: =IF(OR(I3<100.07, H3>$D$2), "No", "Yes") -> Yes | L3: =(F3-100.077)/(G3/SQRT(20)) -> 1.435529298 | M3: =2*(1-_xlfn.NORM.S.DIST(ABS(L3), TRUE)) -> 0.1511363258
A4: =RAND() -> 0.1465498893 | B4: 113.59 | F4: 96.425 | G4: 10.08631094 | H4: 92.00447933 | I4: 100.8455207 | J4: Yes | L4: -1.619248167 | M4: 0.1053938781
A5: =RAND() -> 0.7469112949 | B5: 101.47 | F5: 105.071 | G5: 8.468183736 | H5: 101.3596548 | I5: 108.7823452 | J5: No | L5: 2.63738337 | M5: 0.008354835008
A6: =RAND() -> 0.8825234431 | B6: 104.89 | F6: 101.4165 | G6: 9.458341501 | H6: 97.27119907 | I6: 105.5618009 | J6: Yes | L6: 0.6333484693 | M6: 0.526506108
A7: =RAND() -> 0.8092661833 | B7: 106.62 | F7: 97.2495 | G7: 10.66872284 | H7: 92.57372606 | I7: 101.9252739 | J7: Yes | L7: -1.18523694 | M7: 0.2359237785
A8: =RAND() -> 0.1534350982 | B8: 105.76 | F8: 97.679 | G8: 9.01668506 | H8: 93.72726354 | I8: 101.6307365 | J8: Yes | L8: -1.189370811 | M8: 0.2342937818
A9: =RAND() -> 0.4255375063 | B9: 87.67 | F9: 100.9115 | G9: 8.674174783 | H9: 97.10987529 | I9: 104.7131247 | J9: Yes | L9: 0.4302423629 | M9: 0.667019349
A10: =RAND() -> 0.7807910765 | B10: 102.78 | F10: 100.358 | G10: 8.576214108 | H10: 96.59930844 | I10: 104.1166916 | J10: Yes | L10: 0.1465297143 | M10: 0.8835032344
A11: =RAND() -> 0.2020727641 | B11: 91.16 | F11: 102.244 | G11: 10.17760203 | H11: 97.78346924 | I11: 106.7045308 | J11: Yes | L11: 0.9522005854 | M11: 0.3409952642
A12: =RAND() -> 0.6258094589 | B12: 110.29 | F12: 97.6995 | G12: 9.434966586 | H12: 93.56444358 | I12: 101.8345564 | J12: Yes | L12: -1.126925372 | M12: 0.2597740349
A13: =RAND() -> 0.8208353072 | B13: 109.54 | F13: 97.393 | G13: 8.085524492 | H13: 93.84936265 | I13: 100.9366374 | J13: Yes | L13: -1.484531141 | M13: 0.1376680679
A14: =RAND() -> 0.4322243864 | B14: 105.31 | F14: 103.2835 | G14: 8.607392951 | H14: 99.51114371 | I14: 107.0558563 | J14: Yes | L14: 1.665998522 | M14: 0.09571370872
A15: =RAND() -> 0.141315391 | B15: 98.51 | F15: 98.903 | G15: 10.08772422 | H15: 94.48185993 | I15: 103.3241401 | J15: Yes | L15: -0.5204630395 | M15: 0.6027408823
A16: =RAND() -> 0.8131051538 | B16: 110.72 | F16: 100.989 | G16: 11.4109965 | H16: 95.98791028 | I16: 105.9900897 | J16: Yes | L16: 0.3574261014 | M16: 0.7207728395
A17: =RAND() -> 0.6375722465 | B17: 120.25 | F17: 103.1845 | G17: 10.36205805 | H17: 98.64312783 | I17: 107.7258722 | J17: Yes | L17: 1.341158524 | M17: 0.1798689895
A18: =RAND() -> 0.7939119371 | B18: 99.12 | F18: 100.3255 | G18: 10.48117183 | H18: 95.73192391 | I18: 104.9190761 | J18: Yes | L18: 0.1060306808 | M18: 0.9155580096
A19: =RAND() -> 0.2095426129 | B19: 104.65 | F19: 100.431 | G19: 15.13876895 | H19: 93.79614197 | I19: 107.065858 | J19: Yes | L19: 0.1045749581 | M19: 0.9167130863
A20: =RAND() -> 0.3420329035 | B20: 118.08 | F20: 97.9655 | G20: 8.91097341 | H20: 94.06009371 | I20: 101.8709063 | J20: Yes | L20: -1.059695124 | M20: 0.289283322
A21: =RAND() -> 0.9355703382 | B21: 102.3 | F21: 101.477 | G21: 7.17416498 | H21: 98.33278357 | I21: 104.6212164 | J21: Yes | L21: 0.8727134593 | M21: 0.3828192797
A22: =RAND() -> 0.5169072948 | B22: 106.75 | F22: 97.5655 | G22: 14.01005747 | H22: 91.42532159 | I22: 103.7056784 | J22: Yes | L22: -0.8016933176 | M22: 0.4227303823
A23: =RAND() -> 0.6530748451 | B23: 87.5 | F23: 100.395 | G23: 8.111109665 | H23: 96.84014945 | I23: 103.9498505 | J23: Yes | L23: 0.1753322655 | M23: 0.8608185602
A24: =RAND() -> 0.7014693206 | B24: 105.15 | F24: 99.9565 | G24: 9.072081682 | H24: 95.9804849 | I24: 103.9325151 | J24: Yes | L24: -0.05940118282 | M24: 0.952632571
A25: =RAND() -> 0.8352725026 | B25: 107.24 | F25: 100.5795 | G25: 10.35763917 | H25: 96.04006449 | I25: 105.1189355 | J25: Yes | L25: 0.2169653026 | M25: 0.8282353853
A26: =RAND() -> 0.3820352106 | B26: 99.44 | F26: 98.316 | G26: 8.495879744 | H26: 94.59251653 | I26: 102.0394835 | J26: Yes | L26: -0.9269706792 | M26: 0.353941758
A27: =RAND() -> 0.6428818602 | B27: 118.77 | F27: 95.3905 | G27: 9.567310283 | H27: 91.19744139 | I27: 99.58355861 | J27: No | L27: -2.190653855 | M27: 0.02847685076
A28: =RAND() -> 0.2472875623 | B28: 116.9 | F28: 99.7785 | G28: 8.059790565 | H28: 96.24614104 | I28: 103.310859 | J28: Yes | L28: -0.1656286937 | M28: 0.8684491649
A29: =RAND() -> 0.6888461063 | B29: 104.6 | F29: 98.3815 | G29: 8.582897483 | H29: 94.61987933 | I29: 102.1431207 | J29: Yes | L29: -0.883443677 | M29: 0.376996601
A30: =RAND() -> 0.9391759893 | B30: 94.77 | F30: 99.187 | G30: 10.0469556 | H30: 94.78372756 | I30: 103.5902724 | J30: Yes | L30: -0.3961599074 | M30: 0.6919870661
A31: =RAND() -> 0.1637528272 | B31: 110.74 | F31: 99.195 | G31: 11.84568254 | H31: 94.00340073 | I31: 104.3865993 | J31: Yes | L31: -0.3329840978 | M31: 0.7391462869
A32: =RAND() -> 0.6191172442 | B32: 101.15 | F32: 97.718 | G32: 13.62156556 | H32: 91.74808567 | I32: 103.6879143 | J32: Yes | L32: -0.7744901765 | M32: 0.4386409752
A33: =RAND() -> 0.03138097641 | B33: 106.88 | F33: 97.7695 | G33: 9.210453715 | H33: 93.73284068 | I33: 101.8061593 | J33: Yes | L33: -1.120406664 | M33: 0.2625405066
A34: =RAND() -> 0.2472219981 | B34: 97.9 | F34: 102.142 | G34: 11.29418789 | H34: 97.19210391 | I34: 107.0918961 | J34: Yes | L34: 0.817673731 | M34: 0.4135435141
A35: =RAND() -> 0.3070485598 | B35: 92.01 | F35: 102.1185 | G35: 10.98917854 | H35: 97.30228015 | I35: 106.9347198 | J35: Yes | L35: 0.8308050978 | M35: 0.4060837424
A36: =RAND() -> 0.406248257 | B36: 99.13 | F36: 99.8485 | G36: 9.093430408 | H36: 95.86312841 | I36: 103.8338716 | J36: Yes | L36: -0.1123759703 | M36: 0.9105253075
A37: =RAND() -> 0.02411108622 | B37: 87.25 | F37: 97.5985 | G37: 9.18756899 | H37: 93.57187035 | I37: 101.6251296 | J37: Yes | L37: -1.206433277 | M37: 0.2276504716
A38: =RAND() -> 0.2092802992 | B38: 106.47 | F38: 101.0605 | G38: 9.891918804 | H38: 96.72517544 | I38: 105.3958246 | J38: Yes | L38: 0.4446402967 | M38: 0.6565797214
A39: =RAND() -> 0.3820602073 | B39: 91.32 | F39: 98.1605 | G39: 7.421398985 | H39: 94.90792849 | I39: 101.4130715 | J39: Yes | L39: -1.154883139 | M39: 0.2481382849
A40: =RAND() -> 0.3551816515 | B40: 98.98 | F40: 99.019 | G40: 8.110462314 | H40: 95.46443317 | I40: 102.5735668 | J40: Yes | L40: -0.5833847267 | M40: 0.5596343372
A41: =RAND() -> 0.5738857418 | B41: 114.57 | F41: 102.5965 | G41: 9.524099778 | H41: 98.42237923 | I41: 106.7706208 | J41: Yes | L41: 1.183056331 | M41: 0.2367868231
A42: =RAND() -> 0.6221267145 | B42: 87.26 | F42: 100.7425 | G42: 10.52649883 | H42: 96.12905848 | I42: 105.3559415 | J42: Yes | L42: 0.282734699 | M42: 0.7773802151
A43: =RAND() -> 0.599822268 | B43: 101.62 | F43: 98.8645 | G43: 9.822221035 | H43: 94.55972183 | I43: 103.1692782 | J43: Yes | L43: -0.5520609673 | M43: 0.5809065833
A44: =RAND() -> 0.5583486054 | B44: 118.19 | F44: 104.1435 | G44: 9.302002204 | H44: 100.0667178 | I44: 108.2202822 | J44: Yes | L44: 1.955056606 | M44: 0.05057638931
A45: =RAND() -> 0.8494092308 | B45: 120.2 | F45: 100.5995 | G45: 8.046538631 | H45: 97.07294896 | I45: 104.126051 | J45: Yes | L45: 0.2903970444 | M45: 0.7715125045
A46: =RAND() -> 0.455989163 | B46: 107.74 | F46: 100.305 | G46: 11.34298415 | H46: 95.33371801 | I46: 105.276282 | J46: Yes | L46: 0.08989230559 | M46: 0.9283727956
A47: =RAND() -> 0.4774044522 | B47: 109.42 | F47: 95.6595 | G47: 10.96617118 | H47: 90.85336358 | I47: 100.4656364 | J47: Yes | L47: -1.801509411 | M47: 0.07162262525
A48: =RAND() -> 0.06628695017 | B48: 106.76 | F48: 97.8095 | G48: 9.355350552 | H48: 93.70933684 | I48: 101.9096632 | J48: Yes | L48: -1.083932475 | M48: 0.2783947394
A49: =RAND() -> 0.7931091948 | B49: 105.02 | F49: 102.517 | G49: 10.47036072 | H49: 97.92816209 | I49: 107.1058379 | J49: Yes | L49: 1.042181069 | M49: 0.2973277383
A50: =RAND() -> 0.02168398776 | B50: 83.89 | F50: 99.0175 | G50: 7.181565491 | H50: 95.87004015 | I50: 102.1649598 | J50: Yes | L50: -0.6597764861 | M50: 0.5093972749
A51: =RAND() -> 0.07923577258 | B51: 98.84 | F51: 100.9975 | G51: 11.01195708 | H51: 96.17129702 | I51: 105.823703 | J51: Yes | L51: 0.3738301119 | M51: 0.708530715
A52: =RAND() -> 0.7190150858 | B52: 107.05 | F52: 104.7675 | G52: 9.93496795 | H52: 100.4133083 | I52: 109.1216917 | J52: No | L52: 2.111386147 | M52: 0.03473913482
A53: =RAND() -> 0.7170411645 | B53: 95.43 | F53: 101.975 | G53: 9.168672922 | H53: 97.95665192 | I53: 105.9933481 | J53: Yes | L53: 0.9257734586 | M53: 0.3545637231
A54: =RAND() -> 0.9533817962 | B54: 94.79 | F54: 101.635 | G54: 7.378004651 | H54: 98.40144689 | I54: 104.8685531 | J54: Yes | L54: 0.9443729229 | M54: 0.3449791132
A55: =RAND() -> 0.06098577334 | B55: 99.56 | F55: 101.4785 | G55: 10.19051069 | H55: 97.01231177 | I55: 105.9446882 | J55: Yes | L55: 0.6150524474 | M55: 0.5385200845
A56: =RAND() -> 0.4950201011 | B56: 109.42 | F56: 103.129 | G56: 12.22579538 | H56: 97.77080893 | I56: 108.4871911 | J56: Yes | L56: 1.116406623 | M56: 0.2642481197
A57: =RAND() -> 0.1424034155 | B57: 119.79 | F57: 100.2075 | G57: 13.78626237 | H57: 94.16540411 | I57: 106.2495959 | J57: Yes | L57: 0.04233299253 | M57: 0.9662332446
A58: =RAND() -> 0.126366756 | B58: 103.72 | F58: 100.8615 | G58: 8.71073885 | H58: 97.04385038 | I58: 104.6791496 | J58: Yes | L58: 0.4027661393 | M58: 0.6871202731
A59: =RAND() -> 0.9885243986 | B59: 105.51 | F59: 99.485 | G59: 7.857034059 | H59: 96.041503 | I59: 102.928497 | J59: Yes | L59: -0.3369597822 | M59: 0.7361472181
A60: =RAND() -> 0.05332136688 | B60: 99.04 | F60: 102.3575 | G60: 9.374579219 | H60: 98.24890951 | I60: 106.4660905 | J60: Yes | L60: 1.087910807 | M60: 0.2766344847
A61: =RAND() -> 0.6727290367 | B61: 99.67 | F61: 100.82 | G61: 10.40343314 | H61: 96.2604944 | I61: 105.3795056 | J61: Yes | L61: 0.3193942779 | M61: 0.7494275494
A62: =RAND() -> 0.3926222309 | B62: 110.46 | F62: 100.878 | G62: 7.94743825 | H62: 97.39488161 | I62: 104.3611184 | J62: Yes | L62: 0.4507340337 | M62: 0.6521812502
A63: =RAND() -> 0.06334167352 | B63: 95.01 | F63: 99.0585 | G63: 10.22800607 | H63: 94.5758787 | I63: 103.5411213 | J63: Yes | L63: -0.4453331802 | M63: 0.6560789929
A64: =RAND() -> 0.7242125563 | B64: 90.8 | F64: 99.3295 | G64: 10.6091646 | H64: 94.67982861 | I64: 103.9791714 | J64: Yes | L64: -0.3150975363 | M64: 0.7526875991
A65: =RAND() -> 0.9555084722 | B65: 102.19 | F65: 102.0885 | G65: 9.991823117 | H65: 97.70939044 | I65: 106.4676096 | J65: Yes | L65: 0.9003063172 | M65: 0.3679572602
A66: =RAND() -> 0.490889263 | B66: 112.78 | F66: 101.9945 | G66: 8.939788927 | H66: 98.07646475 | I66: 105.9125352 | J66: Yes | L66: 0.9592307787 | M66: 0.3374424982
A67: =RAND() -> 0.2714506443 | B67: 97.57 | F67: 101.1815 | G67: 10.74614216 | H67: =F67-1.96*G67/SQRT(20) -> 96.47179554 | I67: =F67+1.96*G67/SQRT(20) -> 105.8912045 | J67: =IF(OR(I67<100.07, H67>$D$2), "No", "Yes") -> Yes | L67: =(F67-100.077)/(G67/SQRT(20)) -> 0.459650923 | M67: =2*(1-_xlfn.NORM.S.DIST(ABS(L67), TRUE)) -> 0.6457668013
A68: =RAND() -> 0.9105119859 | B68: 103.31 | F68: 100.174 | G68: 9.740756698 | H68: 95.90492515 | I68: 104.4430748 | J68: Yes | L68: 0.04453423908 | M68: 0.9644785602
A69: =RAND() -> 0.54344476 | B69: 92.04 | F69: 101.954 | G69: 8.009492 | H69: 98.44368536 | I69: 105.4643146 | J69: Yes | L69: 1.048031409 | M69: 0.294624136
A70: =RAND() -> 0.8688360197 | B70: 95.73 | F70: 105.571 | G70: 7.843695356 | H70: 102.1333489 | I70: 109.0086511 | J70: No | L70: 3.132441256 | M70: 0.001733591149
A71: =RAND() -> 0.2119857462 | B71: 91.91 | F71: 98.9075 | G71: 9.764312504 | H71: 94.62810136 | I71: 103.1868986 | J71: Yes | L71: -0.535640681 | M71: 0.5922069075
A72: =RAND() -> 0.3384067782 | B72: 103.9 | F72: 101.146 | G72: 9.037664114 | H72: 97.18506906 | I72: 105.1069309 | J72: Yes | L72: 0.5289766554 | M72: 0.5968216442
A73: =RAND() -> 0.9387115285 | B73: 91.25 | F73: 101.8055 | G73: 9.413162942 | H73: 97.67999944 | I73: 105.9310006 | J73: Yes | L73: 0.821199744 | M73: 0.4115325023
A74: =RAND() -> 0.6660077934 | B74: 109.21 | F74: 100.744 | G74: 10.50279632 | H74: 96.14094656 | I74: 105.3470534 | J74: Yes | L74: 0.2840114757 | M74: 0.7764015863
A75: =RAND() -> 0.8488526596 | B75: 98.24 | F75: 101.565 | G75: 14.12357026 | H75: 95.37507242 | I75: 107.7549276 | J75: Yes | L75: 0.4711654475 | M75: 0.637522591
A76: =RAND() -> 0.7294409163 | B76: 117.9 | F76: 99.3355 | G76: 10.55068343 | H76: 94.71145911 | I76: 103.9595409 | J76: Yes | L76: -0.3143008539 | M76: 0.7532925497
A77: =RAND() -> 0.8868834025 | B77: 75.64 | F77: 100.9115 | G77: 12.72784609 | H77: 95.3332755 | I77: 106.4897245 | J77: Yes | L77: 0.2932151621 | M77: 0.7693576955
A78: =RAND() -> 0.2482666366 | B78: 101.69 | F78: 99.568 | G78: 9.720816838 | H78: 95.30766418 | I78: 103.8283358 | J78: Yes | L78: -0.2341693336 | M78: 0.8148535214
A79: =RAND() -> 0.3651351123 | B79: 94.66 | F79: 102.763 | G79: 7.362270888 | H79: 99.53634252 | I79: 105.9896575 | J79: Yes | L79: 1.631583157 | M79: 0.1027673289
A80: =RAND() -> 0.335520001 | B80: 86.52 | F80: 104.179 | G80: 6.601454305 | H80: 101.2857851 | I80: 107.0722149 | J80: No | L80: 2.77888793 | M80: 0.005454534013
A81: =RAND() -> 0.5522957169 | B81: 93.65 | F81: 98.8155 | G81: 10.04470244 | H81: 94.41321506 | I81: 103.2177849 | J81: Yes | L81: -0.5616492416 | M81: 0.5743550237
A82: =RAND() -> 0.4290354259 | B82: 101.55 | F82: 102.658 | G82: 7.6862061 | H82: 99.28937165 | I82: 106.0266283 | J82: Yes | L82: 1.501726957 | M82: 0.1331676389
A83: =RAND() -> 0.5053767667 | B83: 114.46 | F83: 100.302 | G83: 10.83502974 | H83: 95.55333884 | I83: 105.0506612 | J83: Yes | L83: 0.09286828131 | M83: 0.9260082047
A84: =RAND() -> 0.1408709391 | B84: 105 | F84: 99.7005 | G84: 9.450142564 | H84: 95.55879241 | I84: 103.8422076 | J84: Yes | L84: -0.1781728874 | M84: 0.8585872017
A85: =RAND() -> 0.6902362863 | B85: 92.15 | F85: 100.7425 | G85: 9.171367272 | H85: 96.72297107 | I85: 104.7620289 | J85: Yes | L85: 0.3245106634 | M85: 0.7455514504
A86: =RAND() -> 0.5631087917 | B86: 94.43 | F86: 104.156 | G86: 11.8256605 | H86: 98.97317577 | I86: 109.3388242 | J86: Yes | L86: 1.542564372 | M86: 0.1229365082
A87: =RAND() -> 0.6935318885 | B87: 116.71 | F87: 97.54 | G87: 10.39452133 | H87: 92.98440017 | I87: 102.0955998 | J87: Yes | L87: -1.091518172 | M87: 0.2750449404
A88: =RAND() -> 0.279283998 | B88: 93.4 | F88: 98.736 | G88: 9.943493191 | H88: 94.37807197 | I88: 103.093928 | J88: Yes | L88: -0.6031214786 | M88: 0.5464278788
A89: =RAND() -> 0.864748282 | B89: 117.87 | F89: 97.527 | G89: 7.16808137 | H89: 94.38544983 | I89: 100.6685502 | J89: Yes | L89: -1.590934324 | M89: 0.111624357
A90: =RAND() -> 0.2107998469 | B90: 106.96 | F90: 100.061 | G90: 12.3632775 | H90: 94.64255473 | I90: 105.4794453 | J90: Yes | L90: -0.00578763805 | M90: 0.9953821587
A91: =RAND() -> 0.4020220588 | B91: 98.51 | F91: 98.786 | G91: 12.97597067 | H91: 93.09903011 | I91: 104.4729699 | J91: Yes | L91: -0.4449399329 | M91: 0.6563631633
A92: =RAND() -> 0.5281769967 | B92: 93.63 | F92: 100.58 | G92: 10.88372179 | H92: 95.80999861 | I92: 105.3500014 | J92: Yes | L92: 0.2066833781 | M92: 0.8362571395
A93: =RAND() -> 0.5159066397 | B93: 113.23 | F93: 101.4905 | G93: 10.52982455 | H93: 96.87560092 | I93: 106.1053991 | J93: Yes | L93: 0.6003294873 | M93: 0.5482866706
A94: =RAND() -> 0.2872389889 | B94: 99.91 | F94: 98.789 | G94: 8.482543003 | H94: 95.07136162 | I94: 102.5066384 | J94: Yes | L94: -0.6790547491 | M94: 0.4971031727
A95: =RAND() -> 0.5623876995 | B95: 117.34 | F95: 103.812 | G95: 9.753254572 | H95: 99.53744772 | I95: 108.0865523 | J95: Yes | L95: 1.712600411 | M95: 0.08678607756
A96: =RAND() -> 0.2700194908 | B96: 84.32 | F96: 95.7035 | G96: 10.05585416 | H96: 91.2963276 | I96: 100.1106724 | J96: Yes | L96: -1.945024887 | M96: 0.05177198312
A97: =RAND() -> 0.8443798527 | B97: 113.02 | F97: 100.901 | G97: 9.145070516 | H97: 96.89299613 | I97: 104.9090039 | J97: Yes | L97: 0.4029537028 | M97: 0.6869822835
A98: =RAND() -> 0.5618389604 | B98: 89.05 | F98: 103.6105 | G98: 9.827285043 | H98: 99.30350243 | I98: 107.9174976 | J98: Yes | L98: 1.608001837 | M98: 0.1078347766
A99: =RAND() -> 0.0866822181 | B99: 124.53 | F99: 92.7555 | G99: 12.01192323 | H99: 87.49104253 | I99: 98.01995747 | J99: No | L99: -2.725853534 | M99: 0.006413545118
A100: =RAND() -> 0.6202789263 | B100: 108.41 | F100: 100.1485 | G100: 10.05110273 | H100: 95.74341001 | I100: 104.55359 | J100: Yes | L100: 0.03181319796 | M100: 0.9746210215
A101: =RAND() -> 0.4190602191 | B101: 118.55 | F101: 103.675 | G101: 9.067006992 | H101: 99.70120898 | I101: 107.648791 | J101: Yes | L101: =(F101-100.077)/(G101/SQRT(20)) -> 1.774647927 | M101: 0.07595603835
A102: =RAND() -> 0.9502950198 | B102: 90.78
A103: =RAND() -> 0.7967342904 | B103: 101.81
A104: =RAND() -> 0.6131448204 | B104: 103.86
A105: =RAND() -> 0.2864604979 | B105: 93.29
A106: =RAND() -> 0.6403113448 | B106: 83.56
A107: =RAND() -> 0.3400571549 | B107: 92.18
A108: =RAND() -> 0.1295489402 | B108: 103.63
A109: =RAND() -> 0.9006157669 | B109: 100.52
A110: =RAND() -> 0.8986396646 | B110: 80.33
A111: =RAND() -> 0.2261241691 | B111: 99.98
A112: =RAND() -> 0.8722442367 | B112: 88.32
A113: =RAND() -> 0.5755876094 | B113: 120.75
A114: =RAND() -> 0.2851055116 | B114: 102.28
A115: =RAND() -> 0.5093411335 | B115: 103.63
A116: =RAND() -> 0.747857144 | B116: 94.64
A117: =RAND() -> 0.4958157966 | B117: 105.31
A118: =RAND() -> 0.4251412412 | B118: 107.7
A119: =RAND() -> 0.3002978001 | B119: 97.8
A120: =RAND() -> 0.08660951769 | B120: 98.51
A121: =RAND() -> 0.3293454383 | B121: 97.73
A122: =RAND() -> 0.6621402601 | B122: 85.91
A123: =RAND() -> 0.08241764569 | B123: 93.58
A124: =RAND() -> 0.6967298953 | B124: 100.65
A125: =RAND() -> 0.2109117947 | B125: 92.18
A126: =RAND() -> 0.08563548881 | B126: 120.7
A127: =RAND() -> 0.3667927334 | B127: 95.91
A128: =RAND() -> 0.7394091914 | B128: 78.34
A129: =RAND() -> 0.5321100845 | B129: 91.32
A130: =RAND() -> 0.574059948 | B130: 102.91
A131: =RAND() -> 0.5336158527 | B131: 110.65
A132: =RAND() -> 0.6995338141 | B132: 89.02
A133: =RAND() -> 0.7879310159 | B133: 91.23
A134: =RAND() -> 0.8933358777 | B134: 89.17
A135: =RAND() -> 0.06442575132 | B135: 86.74
A136: =RAND() -> 0.7871393494 | B136: 96.02
A137: =RAND() -> 0.5439035248 | B137: 112.05
A138: =RAND() -> 0.7857962753 | B138: 104.4
A139: =RAND() -> 0.9308011086 | B139: 114.24
A140: =RAND() -> 0.04646749726 | B140: 104.19
A141: =RAND() -> 0.7757617919 | B141: 112.26
A142: =RAND() -> 0.4360204994 | B142: 107.39
A143: =RAND() -> 0.2903296541 | B143: 102.85
A144: =RAND() -> 0.9843712756 | B144: 101.62
A145: =RAND() -> 0.2095553195 | B145: 104.05
A146: =RAND() -> 0.731673239 | B146: 84.62
A147: =RAND() -> 0.6688038478 | B147: 102.23
A148: =RAND() -> 0.9372471418 | B148: 110.33
A149: =RAND() -> 0.3221993519 | B149: 100.12
A150: =RAND() -> 0.08037889911 | B150: 109.84
A151: =RAND() -> 0.3140426655 | B151: 107.85
A152: =RAND() -> 0.575266811 | B152: 109.77
A153: =RAND() -> 0.330937594 | B153: 111.95
A154: =RAND() -> 0.3100698634 | B154: 91.44
A155: =RAND() -> 0.5259065353 | B155: 94.51
A156: =RAND() -> 0.6878847523 | B156: 93.89
A157: =RAND() -> 0.7122025805 | B157: 94.86
A158: =RAND() -> 0.1522285378 | B158: 90.43
A159: =RAND() -> 0.3362159847 | B159: 104.61
A160: =RAND() -> 0.4911442054 | B160: 104.06
A161: =RAND() -> 0.2941148444 | B161: 96.36
A162: =RAND() -> 0.2942802374 | B162: 103.93
A163: =RAND() -> 0.4327730455 | B163: 93.48
A164: =RAND() -> 0.2234165698 | B164: 107.04
A165: =RAND() -> 0.9788727504 | B165: 97.57
A166: =RAND() -> 0.9062623899 | B166: 96.84
A167: =RAND() -> 0.3238325718 | B167: 89.87
A168: =RAND() -> 0.04789620322 | B168: 96.74
A169: =RAND() -> 0.2154019191 | B169: 96.48
A170: =RAND() -> 0.5594840937 | B170: 99.17
A171: =RAND() -> 0.2300768631 | B171: 94.62
A172: =RAND() -> 0.640158226 | B172: 81.53
A173: =RAND() -> 0.1679913193 | B173: 94.33
A174: =RAND() -> 0.4985044977 | B174: 99.22
A175: =RAND() -> 0.855146809 | B175: 90.49
A176: =RAND() -> 0.8160936948 | B176: 98.34
A177: =RAND() -> 0.5793309243 | B177: 110.94
A178: =RAND() -> 0.3283614212 | B178: 96.2
A179: =RAND() -> 0.8055847948 | B179: 95.9
A180: =RAND() -> 0.7895316749 | B180: 97.47
A181: =RAND() -> 0.5203100232 | B181: 96.49
A182: =RAND() -> 0.3685288863 | B182: 95.12
A183: =RAND() -> 0.7937952295 | B183: 110.89
A184: =RAND() -> 0.6494259746 | B184: 106.28
A185: =RAND() -> 0.3079303849 | B185: 115.07
A186: =RAND() -> 0.177416261 | B186: 104.38
A187: =RAND() -> 0.4770284812 | B187: 79.3
A188: =RAND() -> 0.4229098382 | B188: 97.1
A189: =RAND() -> 0.02501173785 | B189: 86.6
A190: =RAND() -> 0.2711829252 | B190: 93.3
A191: =RAND() -> 0.9939508425 | B191: 82.79
A192: =RAND() -> 0.8955183435 | B192: 96.57
A193: =RAND() -> 0.473031025 | B193: 100.81
A194: =RAND() -> 0.7672484297 | B194: 101.8
A195: =RAND() -> 0.4114766694 | B195: 116.25
A196: =RAND() -> 0.5914973311 | B196: 96.52
A197: =RAND() -> 0.3362577949 | B197: 98.04
A198: =RAND() -> 0.3555787893 | B198: 99.63
A199: =RAND() -> 0.2203004807 | B199: 105.27
A200: =RAND() -> 0.769396286 | B200: 94.78
... 4801 more rows

Sheet OutlierSPC (hidden)
A1: 1 | B1: 98.78027666 | C1: 100.07776 | D1: 100 | E1: 1 | F1: 98.78027666 | G1: 102.3489166 | H1: 100 | I1: 1 | J1: 94.88886715 | K1: 100.0767222 | L1: 1 | M1: 95.07194843 | N1: 104.1025601 | O1: 1 | P1: 95.07194843 | Q1: 104.1025601 | R1: 100.077 | S1: 1 | T1: 111.17 | U1: 101.347 | V1: 100.077
A2: 2 | B2: 107.4241029 | C2: 100.07776 | D2: 100 | E2: 2 | F2: 107.4241029 | G2: 102.3489166 | H2: 100 | I2: 2 | J2: 98.78027666 | K2: 100.0767222 | L2: 2 | M2: 80.30452844 | N2: 104.1025601 | O2: 2 | P2: 80.30452844 | Q2: 104.1025601 | R2: 100.077 | S2: 2 | T2: 93.67 | U2: 101.347 | V2: 100.077
A3: 3 | B3: 116.0486252 | C3: 100.07776 | D3: 100 | E3: 3 | F3: 116.0486252 | G3: 102.3489166 | H3: 100 | I3: 3 | J3: 107.4241029 | K3: 100.0767222 | L3: 3 | M3: 103.2497383 | N3: 104.1025601 | O3: 3 | P3: 103.2497383 | Q3: 104.1025601 | R3: 100.077 | S3: 3 | T3: 90.62 | U3: 101.347 | V3: 100.077
A4: 4 | B4: 94.18811285 | C4: 100.07776 | D4: 100 | E4: 4 | F4: 94.18811285 | G4: 102.3489166 | H4: 100 | I4: 4 | J4: 116.0486252 | K4: 100.0767222 | L4: 4 | M4: 114.955549 | N4: 104.1025601 | O4: 4 | P4: 114.955549 | Q4: 104.1025601 | R4: 100.077 | S4: 4 | T4: 96.66 | U4: 101.347 | V4: 100.077
A5: 5 | B5: 98.02778348 | C5: 100.07776 | D5: 100 | E5: 5 | F5: 98.02778348 | G5: 102.3489166 | H5: 100 | I5: 5 | J5: 94.18811285 | K5: 100.0767222 | L5: 5 | M5: 88.24548584 | N5: 104.1025601 | O5: 5 | P5: 88.24548584 | Q5: 104.1025601 | R5: 100.077 | S5: 5 | T5: 114.85 | U5: 101.347 | V5: 100.077
A6: 6 | B6: 112.4863618 | C6: 100.07776 | D6: 100 | E6: 6 | F6: 112.4863618 | G6: 102.3489166 | H6: 100 | I6: 6 | J6: 98.02778348 | K6: 100.0767222 | L6: 6 | M6: 108.644497 | N6: 104.1025601 | O6: 6 | P6: 108.644497 | Q6: 104.1025601 | R6: 100.077 | S6: 6 | T6: 92.43 | U6: 101.347 | V6: 100.077
A7: 7 | B7: 94.43364231 | C7: 100.07776 | D7: 100 | E7: 7 | F7: 94.43364231 | G7: 102.3489166 | H7: 100 | I7: 7 | J7: 112.4863618 | K7: 100.0767222 | L7: 7 | M7: 127.2295438 | N7: 104.1025601 | O7: 7 | P7: 127.2295438 | Q7: 104.1025601 | R7: 100.077 | S7: 7 | T7: 97.45 | U7: 101.347 | V7: 100.077
A8: 8 | B8: 104.4312628 | C8: 100.07776 | D8: 100 | E8: 8 | F8: 104.4312628 | G8: 102.3489166 | H8: 100 | I8: 8 | J8: 94.43364231 | K8: 100.0767222 | L8: 8 | M8: 110.9085249 | N8: 104.1025601 | O8: 8 | P8: 110.9085249 | Q8: 104.1025601 | R8: 100.077 | S8: 8 | T8: 92.62 | U8: 101.347 | V8: 100.077
A9: 9 | B9: 95.32008133 | C9: 100.07776 | D9: 100 | E9: 9 | F9: 95.32008133 | G9: 102.3489166 | H9: 100 | I9: 9 | J9: 104.4312628 | K9: 100.0767222 | L9: 9 | M9: 115.3609108 | N9: 104.1025601 | O9: 9 | P9: 115.3609108 | Q9: 104.1025601 | R9: 100.077 | S9: 9 | T9: 94.16 | U9: 101.347 | V9: 100.077
A10: 10 | B10: 64.36526999 | C10: 100.07776 | D10: 100 | I10: 10 | J10: 95.32008133 | K10: 100.0767222 | L10: 10 | M10: 113.4245511 | N10: 104.1025601 | O10: 10 | P10: 113.4245511 | Q10: 104.1025601 | R10: 100.077 | S10: 10 | T10: 100.69 | U10: 101.347 | V10: 100.077
A11: 11 | B11: 101.0088115 | C11: 100.07776 | D11: 100 | I11: 11 | J11: 64.36526999 | K11: 100.0767222 | L11: 11 | M11: 102.2860263 | N11: 104.1025601 | O11: 11 | P11: 102.2860263 | Q11: 104.1025601 | R11: 100.077 | S11: 11 | T11: 96.01 | U11: 101.347 | V11: 100.077
A12: 12 | B12: 94.64763505 | C12: 100.07776 | D12: 100 | I12: 12 | J12: 101.0088115 | K12: 100.0767222 | L12: 12 | M12: 115.2965185 | N12: 104.1025601 | O12: 12 | P12: 115.2965185 | Q12: 104.1025601 | R12: 100.077 | S12: 12 | T12: 118.09 | U12: 101.347 | V12: 100.077
A13: 13 | B13: 82.94042598 | C13: 100.07776 | D13: 100 | I13: 13 | J13: 94.64763505 | K13: 100.0767222 | L13: 13 | M13: 86.18081918 | N13: 104.1025601 | O13: 13 | P13: 86.18081918 | Q13: 104.1025601 | R13: 100.077 | S13: 13 | T13: 111.21 | U13: 101.347 | V13: 100.077
A14: 14 | B14: 109.1805077 | C14: 100.07776 | D14: 100 | I14: 14 | J14: 82.94042598 | K14: 100.0767222 | L14: 14 | M14: 122.216409 | N14: 104.1025601 | O14: 14 | P14: 122.216409 | Q14: 104.1025601 | R14: 100.077 | S14: 14 | T14: 93.21 | U14: 101.347 | V14: 100.077
A15: 15 | B15: 106.0361685 | C15: 100.07776 | D15: 100 | I15: 15 | J15: 109.1805077 | K15: 100.0767222 | L15: 15 | M15: 102.0182597 | N15: 104.1025601 | O15: 15 | P15: 102.0182597 | Q15: 104.1025601 | R15: 100.077 | S15: 15 | T15: 84.5 | U15: 101.347 | V15: 100.077
A16: 16 | B16: 113.4245511 | C16: 100.07776 | D16: 100 | I16: 16 | J16: 106.0361685 | K16: 100.0767222 | L16: 16 | M16: 103.654111 | N16: 104.1025601 | O16: 16 | P16: 103.654111 | Q16: 104.1025601 | R16: 100.077 | S16: 16 | T16: 117.56 | U16: 101.347 | V16: 100.077
A17: 17 | B17: 95.36781843 | C17: 100.07776 | D17: 100 | I17: 17 | J17: 113.4245511 | K17: 100.0767222 | L17: 17 | M17: 104.367223 | N17: 104.1025601 | O17: 17 | P17: 104.367223 | Q17: 104.1025601 | R17: 100.077 | S17: 17 | T17: 97.7 | U17: 101.347 | V17: 100.077
A18: 18 | B18: 105.2792302 | C18: 100.07776 | D18: 100 | I18: 18 | J18: 95.36781843 | K18: 100.0767222 | L18: 18 | M18: 107.408994 | N18: 104.1025601 | O18: 18 | P18: 107.408994 | Q18: 104.1025601 | R18: 100.077 | S18: 18 | T18: 103.36 | U18: 101.347 | V18: 100.077
A19: 19 | B19: 106.0922503 | C19: 100.07776 | D19: 100 | I19: 19 | J19: 105.2792302 | K19: 100.0767222 | L19: 19 | M19: 95.35333473 | N19: 104.1025601 | O19: 19 | P19: 95.35333473 | Q19: 104.1025601 | R19: 100.077 | S19: 19 | T19: 114.46 | U19: 101.347 | V19: 100.077
A20: 20 | B20: 103.1796617 | C20: 100.07776 | D20: 100 | I20: 20 | J20: 106.0922503 | K20: 100.0767222 | L20: 20 | M20: 85.87422851 | N20: 104.1025601 | O20: 20 | P20: 85.87422851 | Q20: 104.1025601 | R20: 100.077 | S20: 20 | T20: 106.52 | U20: 101.347 | V20: 100.077
A21: 21 | B21: 84.98801688 | C21: 100.07776 | D21: 100 | I21: 21 | J21: 103.1796617 | K21: 100.0767222
A22: 22 | B22: 103.9625661 | C22: 100.07776 | D22: 100 | I22: 22 | J22: 84.98801688 | K22: 100.0767222
A23: 23 | B23: 106.6107987 | C23: 100.07776 | D23: 100 | I23: 23 | J23: 103.9625661 | K23: 100.0767222
A24: 24 | B24: 103.3070592 | C24: 100.07776 | D24: 100 | I24: 24 | J24: 106.6107987 | K24: 100.0767222
A25: 25 | B25: 109.9831823 | C25: 100.07776 | D25: 100 | I25: 25 | J25: 103.3070592 | K25: 100.0767222
A26: 26 | B26: 87.18499228 | C26: 100.07776 | D26: 100 | I26: 26 | J26: 109.9831823 | K26: 100.0767222
A27: 27 | B27: 105.1652592 | C27: 100.07776 | D27: 100 | I27: 27 | J27: 87.18499228 | K27: 100.0767222
A28: 28 | B28: 88.21645022 | C28: 100.07776 | D28: 100 | I28: 28 | J28: 105.1652592 | K28: 100.0767222
A29: 29 | B29: 105.2326868 | C29: 100.07776 | D29: 100 | I29: 29 | J29: 88.21645022 | K29: 100.0767222
A30: 30 | B30: 98.89503215 | C30: 100.07776 | D30: 100 | I30: 30 | J30: 105.2326868 | K30: 100.0767222
A31: 31 | B31: 86.29716629 | C31: 100.07776 | D31: 100 | I31: 31 | J31: 98.89503215 | K31: 100.0767222
A32: 32 | B32: 109.5904852 | C32: 100.07776 | D32: 100 | I32: 32 | J32: 86.29716629 | K32: 100.0767222
A33: 33 | B33: 91.69835974 | C33: 100.07776 | D33: 100 | I33: 33 | J33: 109.5904852 | K33: 100.0767222
A34: 34 | B34: 92.42489821 | C34: 100.07776 | D34: 100 | I34: 34 | J34: 91.69835974 | K34: 100.0767222
A35: 35 | B35: 96.16043169 | C35: 100.07776 | D35: 100 | I35: 35 | J35: 92.42489821 | K35: 100.0767222
A36: 36 | B36: 87.19194991 | C36: 100.07776 | D36: 100 | I36: 36 | J36: 96.16043169 | K36: 100.0767222
A37: 37 | B37: 111.5957164 | C37: 100.07776 | D37: 100 | I37: 37 | J37: 87.19194991 | K37: 100.0767222
A38: 38 | B38: 106.456446 | C38: 100.07776 | D38: 100 | I38: 38 | J38: 111.5957164 | K38: 100.0767222
A39: 39 | B39: 93.38442649 | C39: 100.07776 | D39: 100 | I39: 39 | J39: 106.456446 | K39: 100.0767222
A40: 40 | B40: 109.8605369 | C40: 100.07776 | D40: 100 | I40: 40 | J40: 93.38442649 | K40: 100.0767222
A41: 41 | B41: 112.6805389 | C41: 100.07776 | D41: 100 | I41: 41 | J41: 109.8605369 | K41: 100.0767222
A42: 42 | B42: 92.80671545 | C42: 100.07776 | D42: 100 | I42: 42 | J42: 112.6805389 | K42: 100.0767222
A43: 43 | B43: 95.23370207 | C43: 100.07776 | D43: 100 | I43: 43 | J43: 92.80671545 | K43: 100.0767222
A44: 44 | B44: 95.94458586 | C44: 100.07776 | D44: 100 | I44: 44 | J44: 95.23370207 | K44: 100.0767222
A45: 45 | B45: 94.52452357 | C45: 100.07776 | D45: 100 | I45: 45 | J45: 95.94458586 | K45: 100.0767222
A46: 46 | B46: 96.65899395 | C46: 100.07776 | D46: 100 | I46: 46 | J46: 94.52452357 | K46: 100.0767222
A47: 47 | B47: 110.1546448 | C47: 100.07776 | D47: 100 | I47: 47 | J47: 96.65899395 | K47: 100.0767222
A48: 48 | B48: 95.97280294 | C48: 100.07776 | D48: 100 | I48: 48 | J48: 110.1546448 | K48: 100.0767222
A49: 49 | B49: 98.09558631 | C49: 100.07776 | D49: 100 | I49: 49 | J49: 95.97280294 | K49: 100.0767222
A50: 50 | B50: 112.1274752 | C50: 100.07776 | D50: 100 | I50: 50 | J50: 98.09558631 | K50: 100.0767222
A51: 51 | B51: 101.9340177 | C51: 100.07776 | D51: 100 | I51: 51 | J51: 112.1274752 | K51: 100.0767222
A52: 52 | B52: 91.23369889 | C52: 100.07776 | D52: 100 | I52: 52 | J52: 101.9340177 | K52: 100.0767222
A53: 53 | B53: 84.28083927 | C53: 100.07776 | D53: 100 | I53: 53 | J53: 91.23369889 | K53: 100.0767222
A54: 54 | B54: 101.727858 | C54: 100.07776 | D54: 100 | I54: 54 | J54: 84.28083927 | K54: 100.0767222
A55: 55 | B55: 99.42326667 | C55: 100.07776 | D55: 100 | I55: 55 | J55: 101.727858 | K55: 100.0767222
A56: 56 | B56: 102.2491349 | C56: 100.07776 | D56: 100 | I56: 56 | J56: 99.42326667 | K56: 100.0767222
A57: 57 | B57: 107.3327101 | C57: 100.07776 | D57: 100 | I57: 57 | J57: 102.2491349 | K57: 100.0767222
A58: 58 | B58: 87.41968739 | C58: 100.07776 | D58: 100 | I58: 58 | J58: 107.3327101 | K58: 100.0767222
A59: 59 | B59: 105.7260536 | C59: 100.07776 | D59: 100 | I59: 59 | J59: 87.41968739 | K59: 100.0767222
A60: 60 | B60: 108.2102133 | C60: 100.07776 | D60: 100 | I60: 60 | J60: 105.7260536 | K60: 100.0767222
A61: 61 | B61: 124.4093826 | C61: 100.07776 | D61: 100 | I61: 61 | J61: 108.2102133 | K61: 100.0767222
A62: 62 | B62: 85.75499376 | C62: 100.07776 | D62: 100 | I62: 62 | J62: 124.4093826 | K62: 100.0767222
A63: 63 | B63: 96.45199296 | C63: 100.07776 | D63: 100 | I63: 63 | J63: 85.75499376 | K63: 100.0767222
A64: 64 | B64: 104.2003649 | C64: 100.07776 | D64: 100 | I64: 64 | J64: 96.45199296 | K64: 100.0767222
A65: 65 | B65: 99.87797992 | C65: 100.07776 | D65: 100 | I65: 65 | J65: 104.2003649 | K65: 100.0767222
A66: 66 | B66: 105.0163408 | C66: 100.07776 | D66: 100 | I66: 66 | J66: 99.87797992 | K66: 100.0767222
A67: 67 | B67: 108.7046828 | C67: 100.07776 | D67: 100 | I67: 67 | J67: 105.0163408 | K67: 100.0767222
A68: 68 | B68: 99.36349013 | C68: 100.07776 | D68: 100 | I68: 68 | J68: 108.7046828 | K68: 100.0767222
A69: 69 | B69: 100.7170229 | C69: 100.07776 | D69: 100 | I69: 69 | J69: 99.36349013 | K69: 100.0767222
A70: 70 | B70: 97.81201723 | C70: 100.07776 | D70: 100 | I70: 70 | J70: 100.7170229 | K70: 100.0767222
A71: 71 | B71: 99.83054977 | C71: 100.07776 | D71: 100 | I71: 71 | J71: 97.81201723 | K71: 100.0767222
A72: 72 | B72: 114.5534614 | C72: 100.07776 | D72: 100 | I72: 72 | J72: 99.83054977 | K72: 100.0767222
A73: 73 | B73: 99.38495421 | C73: 100.07776 | D73: 100 | I73: 73 | J73: 114.5534614 | K73: 100.0767222
A74: 74 | B74: 90.39860086 | C74: 100.07776 | D74: 100 | I74: 74 | J74: 99.38495421 | K74: 100.0767222
A75: 75 | B75: 113.4907623 | C75: 100.07776 | D75: 100 | I75: 75 | J75: 90.39860086 | K75: 100.0767222
A76: 76 | B76: 91.95792952 | C76: 100.07776 | D76: 100 | I76: 76 | J76: 113.4907623 | K76: 100.0767222
A77: 77 | B77: 93.20435791 | C77: 100.07776 | D77: 100 | I77: 77 | J77: 91.95792952 | K77: 100.0767222
A78: 78 | B78: 93.89576715 | C78: 100.07776 | D78: 100 | I78: 78 | J78: 93.20435791 | K78: 100.0767222
A79: 79 | B79: 99.19858737 | C79: 100.07776 | D79: 100 | I79: 79 | J79: 93.89576715 | K79: 100.0767222
A80: 80 | B80: 101.7333036 | C80: 100.07776 | D80: 100 | I80: 80 | J80: 99.19858737 | K80: 100.0767222
A81: 81 | B81: 92.66628947 | C81: 100.07776 | D81: 100 | I81: 81 | J81: 101.7333036 | K81: 100.0767222
A82: 82 | B82: 105.8381715 | C82: 100.07776 | D82: 100 | I82: 82 | J82: 92.66628947 | K82: 100.0767222
A83: 83 | B83: 91.7554419 | C83: 100.07776 | D83: 100 | I83: 83 | J83: 105.8381715 | K83: 100.0767222
A84: 84 | B84: 93.34534095 | C84: 100.07776 | D84: 100 | I84: 84 | J84: 91.7554419 | K84: 100.0767222
A85: 85 | B85: 83.04115252 | C85: 100.07776 | D85: 100 | I85: 85 | J85: 93.34534095 | K85: 100.0767222
A86: 86 | B86: 82.17008397 | C86: 100.07776 | D86: 100 | I86: 86 | J86: 83.04115252 | K86: 100.0767222
A87: 87 | B87: 114.2386853 | C87: 100.07776 | D87: 100 | I87: 87 | J87: 82.17008397 | K87: 100.0767222
A88: 88 | B88: 93.99867647 | C88: 100.07776 | D88: 100 | I88: 88 | J88: 114.2386853 | K88: 100.0767222
A89: 89 | B89: 113.4566335 | C89: 100.07776 | D89: 100 | I89: 89 | J89: 93.99867647 | K89: 100.0767222
A90: 90 | B90: 94.32703817 | C90: 100.07776 | D90: 100 | I90: 90 | J90: 113.4566335 | K90: 100.0767222
A91: 91 | B91: 106.3840616 | C91: 100.07776 | D91: 100 | I91: 91 | J91: 94.32703817 | K91: 100.0767222
A92: 92 | B92: 110.8808308 | C92: 100.07776 | D92: 100 | I92: 92 | J92: 106.3840616 | K92: 100.0767222
A93: 93 | B93: 113.1909019 | C93: 100.07776 | D93: 100 | I93: 93 | J93: 110.8808308 | K93: 100.0767222
A94: 94 | B94: 98.48529342 | C94: 100.07776 | D94: 100 | I94: 94 | J94: 113.1909019 | K94: 100.0767222
A95: 95 | B95: 102.5957661 | C95: 100.07776 | D95: 100 | I95: 95 | J95: 98.48529342 | K95: 100.0767222
A96: 96 | B96: 81.33362169 | C96: 100.07776 | D96: 100 | I96: 96 | J96: 102.5957661 | K96: 100.0767222
A97: 97 | B97: 111.8574008 | C97: 100.07776 | D97: 100 | I97: 97 | J97: 81.33362169 | K97: 100.0767222
A98: 98 | B98: 107.0395572 | C98: 100.07776 | D98: 100 | I98: 98 | J98: 111.8574008 | K98: 100.0767222
A99: 99 | B99: 108.8712568 | C99: 100.07776 | D99: 100 | I99: 99 | J99: 107.0395572 | K99: 100.0767222
A100: 100 | B100: 90.49039161 | C100: 100.07776 | D100: 100 | I100: 100 | J100: 108.8712568 | K100: 100.0767222
A101: 101 | B101: 95.50195753 | C101: 100.07776 | D101: 100 | I101: 101 | J101: 90.49039161 | K101: 100.0767222
A102: 102 | B102: 95.14609499 | C102: 100.07776 | D102: 100 | I102: 102 | J102: 95.50195753 | K102: 100.0767222
A103: 103 | B103: 83.68793968 | C103: 100.07776 | D103: 100 | I103: 103 | J103: 95.14609499 | K103: 100.0767222
A104: 104 | B104: 83.87602318 | C104: 100.07776 | D104: 100 | I104: 104 | J104: 83.68793968 | K104: 100.0767222
A105: 105 | B105: 117.5057266 | C105: 100.07776 | D105: 100 | I105: 105 | J105: 83.87602318 | K105: 100.0767222
A106: 106 | B106: 95.55523118 | C106: 100.07776 | D106: 100 | I106: 106 | J106: 117.5057266 | K106: 100.0767222
A107: 107 | B107: 121.0025064 | C107: 100.07776 | D107: 100 | I107: 107 | J107: 95.55523118 | K107: 100.0767222
A108: 108 | B108: 90.66212695 | C108: 100.07776 | D108: 100 | I108: 108 | J108: 121.0025064 | K108: 100.0767222
A109: 109 | B109: 95.85554633 | C109: 100.07776 | D109: 100 | I109: 109 | J109: 90.66212695 | K109: 100.0767222
A110: 110 | B110: 99.93917754 | C110: 100.07776 | D110: 100 | I110: 110 | J110: 95.85554633 | K110: 100.0767222
A111: 111 | B111: 114.7731498 | C111: 100.07776 | D111: 100 | I111: 111 | J111: 99.93917754 | K111: 100.0767222
A112: 112 | B112: 109.6707481 | C112: 100.07776 | D112: 100 | I112: 112 | J112: 114.7731498 | K112: 100.0767222
A113: 113 | B113: 93.29370439 | C113: 100.07776 | D113: 100 | I113: 113 | J113: 109.6707481 | K113: 100.0767222
A114: 114 | B114: 114.4592832 | C114: 100.07776 | D114: 100 | I114: 114 | J114: 93.29370439 | K114: 100.0767222
A115: 115 | B115: 104.8409902 | C115: 100.07776 | D115: 100 | I115: 115 | J115: 114.4592832 | K115: 100.0767222
A116: 116 | B116: 110.1431169 | C116: 100.07776 | D116: 100 | I116: 116 | J116: 104.8409902 | K116: 100.0767222
A117: 117 | B117: 90.85093805 | C117: 100.07776 | D117: 100 | I117: 117 | J117: 110.1431169 | K117: 100.0767222
A118: 118 | B118: 110.4696937 | C118: 100.07776 | D118: 100 | I118: 118 | J118: 90.85093805 | K118: 100.0767222
A119: 119 | B119: 117.0858584 | C119: 100.07776 | D119: 100 | I119: 119 | J119: 110.4696937 | K119: 100.0767222
A120: 120 | B120: 95.19337734 | C120: 100.07776 | D120: 100 | I120: 120 | J120: 117.0858584 | K120: 100.0767222
A121: 121 | B121: 103.2658704 | C121: 100.07776 | D121: 100 | I121: 121 | J121: 95.19337734 | K121: 100.0767222
A122: 122 | B122: 108.9406285 | C122: 100.07776 | D122: 100 | I122: 122 | J122: 103.2658704 | K122: 100.0767222
A123: 123 | B123: 99.98354951 | C123: 100.07776 | D123: 100 | I123: 123 | J123: 108.9406285 | K123: 100.0767222
A124: 124 | B124: 96.47561708 | C124: 100.07776 | D124: 100 | I124: 124 | J124: 99.98354951 | K124: 100.0767222
A125: 125 | B125: 101.7636012 | C125: 100.07776 | D125: 100 | I125: 125 | J125: 96.47561708 | K125: 100.0767222
A126: 126 | B126: 97.6330173 | C126: 100.07776 | D126: 100 | I126: 126 | J126: 101.7636012 | K126: 100.0767222
A127: 127 | B127: 99.26687906 | C127: 100.07776 | D127: 100 | I127: 127 | J127: 97.6330173 | K127: 100.0767222
A128: 128 | B128: 91.54185844 | C128: 100.07776 | D128: 100 | I128: 128 | J128: 99.26687906 | K128: 100.0767222
A129: 129 | B129: 109.360383 | C129: 100.07776 | D129: 100 | I129: 129 | J129: 91.54185844 | K129: 100.0767222
A130: 130 | B130: 94.53784767 | C130: 100.07776 | D130: 100 | I130: 130 | J130: 109.360383 | K130: 100.0767222
A131: 131 | B131: 78.20541466 | C131: 100.07776 | D131: 100 | I131: 131 | J131: 94.53784767 | K131: 100.0767222
A132: 132 | B132: 99.66985342 | C132: 100.07776 | D132: 100 | I132: 132 | J132: 78.20541466 | K132: 100.0767222
A133: 133 | B133: 103.2158823 | C133: 100.07776 | D133: 100 | I133: 133 | J133: 99.66985342 | K133: 100.0767222
A134: 134 | B134: 103.1740228 | C134: 100.07776 | D134: 100 | I134: 134 | J134: 103.2158823 | K134: 100.0767222
A135: 135 | B135: 103.3215997 | C135: 100.07776 | D135: 100 | I135: 135 | J135: 103.1740228 | K135: 100.0767222
A136: 136 | B136: 96.47968707 | C136: 100.07776 | D136: 100 | I136: 136 | J136: 103.3215997 | K136: 100.0767222
A137: 137 | B137: 90.21506483 | C137: 100.07776 | D137: 100 | I137: 137 | J137: 96.47968707 | K137: 100.0767222
A138: 138 | B138: 100.6840423 | C138: 100.07776 | D138: 100 | I138: 138 | J138: 90.21506483 | K138: 100.0767222
A139: 139 | B139: 95.98359182 | C139: 100.07776 | D139: 100 | I139: 139 | J139: 100.6840423 | K139: 100.0767222
A140: 140 | B140: 82.73692654 | C140: 100.07776 | D140: 100 | I140: 140 | J140: 95.98359182 | K140: 100.0767222
A141: 141 | B141: 97.38681709 | C141: 100.07776 | D141: 100 | I141: 141 | J141: 82.73692654 | K141: 100.0767222
A142: 142 | B142: 108.5096644 | C142: 100.07776 | D142: 100 | I142: 142 | J142: 97.38681709 | K142: 100.0767222
A143: 143 | B143: 92.34413508 | C143: 100.07776 | D143: 100 | I143: 143 | J143: 108.5096644 | K143: 100.0767222
A144: 144 | B144: 97.86605258 | C144: 100.07776 | D144: 100 | I144: 144 | J144: 92.34413508 | K144: 100.0767222
A145: 145 | B145: 112.6754003 | C145: 100.07776 | D145: 100 | I145: 145 | J145: 97.86605258 | K145: 100.0767222
A146: 146 | B146: 100.2803972 | C146: 100.07776 | D146: 100 | I146: 146 | J146: 112.6754003 | K146: 100.0767222
A147: 147 | B147: 93.20627921 | C147: 100.07776 | D147: 100 | I147: 147 | J147: 100.2803972 | K147: 100.0767222
A148: 148 | B148: 100.7469339 | C148: 100.07776 | D148: 100 | I148: 148 | J148: 93.20627921 | K148: 100.0767222
A149: 149 | B149: 79.91762939 | C149: 100.07776 | D149: 100 | I149: 149 | J149: 100.7469339 | K149: 100.0767222
A150: 150 | B150: 102.2091399 | C150: 100.07776 | D150: 100 | I150: 150 | J150: 79.91762939 | K150: 100.0767222
A151: 151 | B151: 87.57180038 | C151: 100.07776 | D151: 100 | I151: 151 | J151: 102.2091399 | K151: 100.0767222
A152: 152 | B152: 96.78411768 | C152: 100.07776 | D152: 100 | I152: 152 | J152: 87.57180038 | K152: 100.0767222
A153: 153 | B153: 91.06735231 | C153: 100.07776 | D153: 100 | I153: 153 | J153: 96.78411768 | K153: 100.0767222
A154: 154 | B154: 89.36746124 | C154: 100.07776 | D154: 100 | I154: 154 | J154: 91.06735231 | K154: 100.0767222
A155: 155 | B155: 112.3869086 | C155: 100.07776 | D155: 100 | I155: 155 | J155: 89.36746124 | K155: 100.0767222
A156: 156 | B156: 111.1402869 | C156: 100.07776 | D156: 100 | I156: 156 | J156: 112.3869086 | K156: 100.0767222
A157: 157 | B157: 100.471789 | C157: 100.07776 | D157: 100 | I157: 157 | J157: 111.1402869 | K157: 100.0767222
A158: 158 | B158: 103.0800379 | C158: 100.07776 | D158: 100 | I158: 158 | J158: 100.471789 | K158: 100.0767222
A159: 159 | B159: 94.32254754 | C159: 100.07776 | D159: 100 | I159: 159 | J159: 103.0800379 | K159: 100.0767222
A160: 160 | B160: 99.00733201 | C160: 100.07776 | D160: 100 | I160: 160 | J160: 94.32254754 | K160: 100.0767222
A161: 161 | B161: 105.0241624 | C161: 100.07776 | D161: 100 | I161: 161 | J161: 99.00733201 | K161: 100.0767222
A162: 162 | B162: 98.47445906 | C162: 100.07776 | D162: 100 | I162: 162 | J162: 105.0241624 | K162: 100.0767222
A163: 163 | B163: 92.32668415 | C163: 100.07776 | D163: 100 | I163: 163 | J163: 98.47445906 | K163: 100.0767222
A164: 164 | B164: 93.31860181 | C164: 100.07776 | D164: 100 | I164: 164 | J164: 92.32668415 | K164: 100.0767222
A165: 165 | B165: 91.20559551 | C165: 100.07776 | D165: 100 | I165: 165 | J165: 93.31860181 | K165: 100.0767222
A166: 166 | B166: 95.03909294 | C166: 100.07776 | D166: 100 | I166: 166 | J166: 91.20559551 | K166: 100.0767222
A167: 167 | B167: 102.1958158 | C167: 100.07776 | D167: 100 | I167: 167 | J167: 95.03909294 | K167: 100.0767222
A168: 168 | B168: 81.35108399 | C168: 100.07776 | D168: 100 | I168: 168 | J168: 102.1958158 | K168: 100.0767222
A169: 169 | B169: 108.6411546 | C169: 100.07776 | D169: 100 | I169: 169 | J169: 81.35108399 | K169: 100.0767222
A170: 170 | B170: 110.7272399 | C170: 100.07776 | D170: 100 | I170: 170 | J170: 108.6411546 | K170: 100.0767222
A171: 171 | B171: 118.4902092 | C171: 100.07776 | D171: 100 | I171: 171 | J171: 110.7272399 | K171: 100.0767222
A172: 172 | B172: 89.57518983 | C172: 100.07776 | D172: 100 | I172: 172 | J172: 118.4902092 | K172: 100.0767222
A173: 173 | B173: 104.1194539 | C173: 100.07776 | D173: 100 | I173: 173 | J173: 89.57518983 | K173: 100.0767222
A174: 174 | B174: 105.839081 | C174: 100.07776 | D174: 100 | I174: 174 | J174: 104.1194539 | K174: 100.0767222
A175: 175 | B175: 123.2941602 | C175: 100.07776 | D175: 100 | I175: 175 | J175: 105.839081 | K175: 100.0767222
A176: 176 | B176: 103.1957597 | C176: 100.07776 | D176: 100 | I176: 176 | J176: 123.2941602 | K176: 100.0767222
A177: 177 | B177: 99.77469543 | C177: 100.07776 | D177: 100 | I177: 177 | J177: 103.1957597 | K177: 100.0767222
A178: 178 | B178: 107.2081548 | C178: 100.07776 | D178: 100 | I178: 178 | J178: 99.77469543 | K178: 100.0767222
A179: 179 | B179: 94.10185865 | C179: 100.07776 | D179: 100 | I179: 179 | J179: 107.2081548 | K179: 100.0767222
A180: 180 | B180: 97.53929387 | C180: 100.07776 | D180: 100 | I180: 180 | J180: 94.10185865 | K180: 100.0767222
A181: 181 | B181: 100.9204314 | C181: 100.07776 | D181: 100 | I181: 181 | J181: 97.53929387 | K181: 100.0767222
A182: 182 | B182: 102.4575456 | C182: 100.07776 | D182: 100 | I182: 182 | J182: 100.9204314 | K182: 100.0767222
A183: 183 | B183: 101.5301794 | C183: 100.07776 | D183: 100 | I183: 183 | J183: 102.4575456 | K183: 100.0767222
A184: 184 | B184: 89.29990852 | C184: 100.07776 | D184: 100 | I184: 184 | J184: 101.5301794 | K184: 100.0767222
A185: 185 | B185: 106.9496764 | C185: 100.07776 | D185: 100 | I185: 185 | J185: 89.29990852 | K185: 100.0767222
A186: 186 | B186: 75.62044882 | C186: 100.07776 | D186: 100 | I186: 186 | J186: 106.9496764 | K186: 100.0767222
A187: 187 | B187: 118.2828444 | C187: 100.07776 | D187: 100 | I187: 187 | J187: 75.62044882 | K187: 100.0767222
A188: 188 | B188: 99.49221774 | C188: 100.07776 | D188: 100 | I188: 188 | J188: 118.2828444 | K188: 100.0767222
A189: 189 | B189: 105.0867357 | C189: 100.07776 | D189: 100 | I189: 189 | J189: 99.49221774 | K189: 100.0767222
A190: 190 | B190: 100.2092406 | C190: 100.07776 | D190: 100 | I190: 190 | J190: 105.0867357 | K190: 100.0767222
A191: 191 | B191: 79.504355 | C191: 100.07776 | D191: 100 | I191: 191 | J191: 100.2092406 | K191: 100.0767222
A192: 192 | B192: 89.25504769 | C192: 100.07776 | D192: 100 | I192: 192 | J192: 79.504355 | K192: 100.0767222
A193: 193 | B193: 106.9535645 | C193: 100.07776 | D193: 100 | I193: 193 | J193: 89.25504769 | K193: 100.0767222
A194: 194 | B194: 103.2917114 | C194: 100.07776 | D194: 100 | I194: 194 | J194: 106.9535645 | K194: 100.0767222
A195: 195 | B195: 97.36069185 | C195: 100.07776 | D195: 100 | I195: 195 | J195: 103.2917114 | K195: 100.0767222
A196: 196 | B196: 109.4245934 | C196: 100.07776 | D196: 100 | I196: 196 | J196: 97.36069185 | K196: 100.0767222
A197: 197 | B197: 91.03881692 | C197: 100.07776 | D197: 100 | I197: 197 | J197: 109.4245934 | K197: 100.0767222
A198: 198 | B198: 88.01179117 | C198: 100.07776 | D198: 100 | I198: 198 | J198: 91.03881692 | K198: 100.0767222
A199: 199 | B199: 115.2011125 | C199: 100.07776 | D199: 100 | I199: 199 | J199: 88.01179117 | K199: 100.0767222
A200: 200 | B200: 93.80427198 | C200: 100.07776 | D200: 100 | I200: 200 | J200: 115.2011125 | K200: 100.0767222
... 4800 more rows
